Cogmind - Beta 16 @@@ ROGUE MODE // 2025.10.24 @ 21:09:34 Player: Turret Result: Core destroyed Performance ------------- Evolutions (0) 0 Regions Visited (1) 200 Robots Destroyed (19) 95 Value Destroyed (370) 370 Prototype IDs (0) 0 Alien Tech Used (0) 0 Bonus (0) 0 TOTAL SCORE: 665 Bonus ------- None Cogmind --------- Core Integrity 0/250 Matter 278/300 Energy 200/200 System Corruption 0% Temperature Cool (0) Movement Rolling (80) Location -10/Materials Parts ------- > --- POWER (1) -------- (None) > --- PROPULSION (2) --- Wheel Wheel > --- UTILITY (2) ------ Small Battery Signal Interpreter > --- WEAPON (2) ------- (None) > --- INVENTORY (5) ---- Ion Engine Wheel Wheel Small Battery (100) Visual Processing Unit Peak State ------------ > --- POWER ------------ Ion Engine > --- PROPULSION ------- Aluminum Leg Aluminum Leg > --- UTILITY ---------- Heat Sink Small Matter Pod > --- WEAPON ----------- Assault Rifle Assault Rifle > --- INVENTORY -------- Wheel Wheel Medium Laser Small Laser [Rating: 7] Favorites ----------- Power Light Ion Engine Engine Light Ion Engine Propulsion Aluminum Leg Leg Aluminum Leg Wheel Wheel Flight Unit Flight Unit Utility Heat Sink Device Heat Sink Storage Small Matter Pod Processor Signal Interpreter Weapon Assault Rifle Energy Gun Medium Laser Ballistic Gun Assault Rifle Build | -11 -10 ------- Run | Yrd Mat Slots Evolved . | . . Power . | . . Propulsion . | . . Utility . | . . Weapon . | . . Parts Attached 21 | 6 15 Power 4 | 1 3 Engine 4 | 1 3 Core . | . . Reactor . | . . Propulsion 7 | 2 5 Treads . | . . Leg 3 | 2 1 Wheel 2 | . 2 Hover . | . . Flight 2 | . 2 Utility 5 | 1 4 Device 1 | 1 . Storage 3 | . 3 Processor 1 | . 1 Hackware . | . . Protection . | . . Artifact . | . . Weapon 5 | 2 3 Energy Gun 2 | . 2 Energy Cannon . | . . Ballistic Gun 3 | 2 1 Ballistic Cannon . | . . Launcher . | . . Special Weapon . | . . Impact Weapon . | . . Slashing Weapon . | . . Piercing Weapon . | . . Special Melee Weapon . | . . Unidentified Prototypes . | . . Parts Lost 11 | . 11 Power 3 | . 3 Propulsion 3 | . 3 Utility . | . . Weapon 5 | . 5 Highest Loss Streak 4 | . 4 To Critical Strikes . | . . Average Backups 4 | 4 4 Power . | . . Propulsion 1 | 1 1 Utility . | . . Weapon 1 | 1 1 Tool/Special . | . . Unused Backups 7 | . 7 Power . | . . Propulsion 5 | . 5 Utility 2 | . 2 Weapon . | . . Tool/Special . | . . Average Slot Usage (%) 88 | . 88 Engine 13 | . 13 Leg 21 | . 21 Flight 3 | . 3 Device 5 | . 5 Storage 10 | . 10 Processor 7 | . 7 Energy Gun 5 | . 5 Ballistic Gun 21 | . 21 Peak Build Rating 7 | 6 7 Average Rating 5 | 5 6 On Entrance 3 | . 6 Avg Prop Armor Cover (%) . | . . Naked Turns . | . . Heaviest Build 13 | 8 13 Greatest Support 20 | 20 20 Greatest Overweight (x) 2 | . 2 Average Overweight (x) . | . . Largest Inventory Capacity 8 | 5 8 Average Capacity 5 | 5 5 Most Carried 8 | 5 8 Average Carried 4 | 4 4 Final Capacity 5 | 5 5 Final Carried 5 | 5 5 Class Distribution -------------------- 88% | Mutant 11% | Scavenger-Mutant Dominant Class ---------------- Mutant | -10/Materials Resources | -11 -10 ----------- Run | Yrd Mat Matter Collected 600 | 284 316 Remotely . | . . Salvage Created 560 | 40 520 Parts 37 | 3 34 Haulers Intercepted . | . . Recyclers Shooed 1 | . 1 Parts Field Recycled . | . . Retrieved Matter . | . . Parts Self-Destructed . | . . Prevented . | . . Parts Restored . | . . Kills | -11 -10 ------- Run | Yrd Mat Combat Hostiles Destroyed 15 | 1 14 Guns 15 | 1 14 Classes Destroyed 5 | 1 4 Worker 1 | . 1 Recycler 1 | . 1 Watcher 2 | . 2 Swarmer 8 | . 8 Grunt 7 | 1 6 Best Kill Streak 4 | 1 4 Combat Bots Only 4 | 1 4 Max Kills in Single Turn 1 | 1 1 Gunslinging . | . . Exploded . | . . Melee . | . . Uniques/NPCs Destroyed . | . . Combat | -11 -10 -------- Run | Yrd Mat Hostile Shots Fired 165 | 8 157 Missed 42 | 2 40 Hits 123 | 6 117 Projectile 123 | 6 117 Damage Taken 1173 | 67 1106 Core 251 | . 251 Absorbed by Shields . | . . Core Remaining (%) 100 | 100 . Volleys Fired 63 | 4 59 Largest 2 | 2 2 Hottest 90 | 40 90 Shots Fired 125 | 8 117 Gun 125 | 8 117 Cannon . | . . Launcher . | . . Special . | . . Kinetic 79 | 8 71 Thermal 46 | . 46 Explosive . | . . Electromagnetic . | . . Robot Hit Streak 7 | 2 7 Robot Miss Streak 7 | 3 7 Penetration Max . | . . Secondary Targets 2 | . 2 Max Gunslinging Chain 1 | . 1 Shots Hit Robots 59 | 3 56 Core Hits 28 | 2 26 Critical Kills . | . . Critical Parts Destroyed . | . . Critical Strikes 2 | . 2 Burn 2 | . 2 Melee Attacks . | . . Impact . | . . Slashing . | . . Piercing . | . . Sneak Attacks . | . . Combat Hostiles . | . . Follow-up Attacks . | . . Damage Inflicted 705 | 34 671 Guns 681 | 34 647 Cannons . | . . Explosions . | . . Melee . | . . Ramming 24 | . 24 Kinetic 482 | 34 448 Thermal 199 | . 199 Explosive . | . . Electromagnetic . | . . Impact . | . . Slashing . | . . Piercing . | . . Highest Corruption . | . . Average Corruption . | . . Corruption Purged . | . . Corruption Blocked . | . . Overload Shots . | . . Overflow Damage . | . . Projectiles . | . . Explosions . | . . Melee . | . . Knockbacks . | . . Impact . | . . Kinetic . | . . Secondary . | . . Self-Inflicted Damage 7 | . 7 Shots . | . . Rammed 3 | . 3 Targets Rammed 6 | . 6 Kicked 3 | . 3 Crushed . | . . Highest Temperature 497 | . 497 Average Temperature 169 | . 169 Received Heat Transfer 333 | 36 297 Effects 4 | . 4 Shutdowns 2 | . 2 Energy Bleed 1 | . 1 Short Circuit 1 | . 1 Siege Activations . | . . Martial Activations . | . . Shielding Activations . | . . Robots Disrupted . | . . Combat Hostiles . | . . Robots Corrupted . | . . Combat Hostiles . | . . Parts Fried . | . . Impact Corruptions . | . . Robots Melted . | . . Combat Hostiles . | . . Parts Melted 1 | . 1 Heat Transferred 681 | . 681 Parts Sabotaged . | . . Parts Stolen . | . . Parts Stripped . | . . Power Chain Reactions . | . . Alert | -11 -10 ------- Run | Yrd Mat Maximum Alert Level . | . . Low Security (%) 100 | 100 100 Level 1 . | . . Level 2 . | . . Level 3 . | . . Level 4 . | . . Level 5 . | . . High Security . | . . Max Security . | . . Peak Influence 155 | 20 155 Initial . | . . Average 26 | . 63 Influence Increases 460 | 20 440 Destroy 0b10 Robot/C 300 | 20 280 Destroy 0b10 Robot/NC 20 | . 20 Destroy Leader 64 | . 64 Successful Hack 1 | . 1 Lose Combat Pursuer 75 | . 75 Influence Decreases 372 | 20 352 Time Decay 272 | 20 252 Lost Part 100 | . 100 Squads Dispatched 4 | . 4 Investigation 2 | . 2 Extermination . | . . Reinforcement 2 | . 2 Assault . | . . Garrison . | . . Intercept . | . . Searches Triggered . | . . Construction Impeded . | . . Haulers Reinforced . | . . Active Scanning Responses . | . . Cargo Convoy Interrupts . | . . Stealth | -11 -10 --------- Run | Yrd Mat Distress Signals 1 | . 1 Communications Jammed . | . . Distress Signals . | . . Times Spotted 28 | 1 27 Peak Tracking Total 7 | 1 7 Tactical Retreats 3 | . 3 Traps | -11 -10 ------- Run | Yrd Mat Traps Triggered 1 | . 1 Indirectly . | . . Trap Hack Attempts . | . . Triggered . | . . Disarmed . | . . Reprogrammed . | . . Reused . | . . Traps Extracted . | . . Installed . | . . Triggered . | . . Machines | -11 -10 ---------- Run | Yrd Mat Machines Disabled . | . . Max in Single Turn . | . . Machines Repaired . | . . Machines Dismantled . | . . Machines Sabotaged . | . . Overloaded Fab Kills . | . . Hacking | -11 -10 --------- Run | Yrd Mat Machines Accessed 1 | . 1 Terminals . | . . Fabricators . | . . Repair Stations . | . . Recycling Units 1 | . 1 Scanalyzers . | . . Garrison Access . | . . Total Hacks 4 | . 4 Successful 4 | . 4 Failed . | . . Catastrophic . | . . Database Lockouts . | . . Manual . | . . Terminals . | . . Fabricators . | . . Repair Stations . | . . Recycling Units 4 | . 4 Scanalyzers . | . . Garrison Access . | . . Terminal Hacks . | . . Fabricator Hacks . | . . Repair Station Hacks . | . . Recycling Unit Hacks 4 | . 4 Recycle Component 1 | . 1 Process 1 | . 1 Retrieve Matter 1 | . 1 Retrieve Components 1 | . 1 Scanalyzer . | . . Garrison Access Hacks . | . . Unauthorized Hacks . | . . Terminals . | . . Fabricators . | . . Repair Stations . | . . Recycling Units . | . . Scanalyzers . | . . Garrison Access . | . . Data Cores Recovered . | . . Used . | . . Hacking Detections 1 | . 1 Full Trace Events 1 | . 1 Feedback Events . | . . Feedback Blocked . | . . Robot Schematics Acquired . | . . Robots Built . | . . Authchips . | . . Time . | . . Total Robot Build Rating . | . . Part Schematics Acquired . | . . Parts Built . | . . Authchips . | . . Time . | . . Total Part Build Rating . | . . Part Studies Acquired . | . . Parts Repaired . | . . Time . | . . Parts Recycled 1 | . 1 Recycled Matter 8 | . 8 Retrieved Matter . | . . Retrieved Components 8 | . 8 Parts Scanalyzed . | . . Part Schematics Acquired . | . . Parts Damaged . | . . Bothacking | -11 -10 ------------ Run | Yrd Mat Used RIF Installer . | . . Robots Hacked . | . . Non-combat . | . . Combat . | . . Robot Hacks Applied . | . . Relay Couplers Released . | . . Fabnet Peak Effective % . | . . Robots Rewired . | . . Allies Hacked . | . . Hacks Repelled . | . . Allies | -11 -10 -------- Run | Yrd Mat Total Allies . | . . Largest Group . | . . Highest-Rated Group . | . . Highest-Rated Ally . | . . Total Orders . | . . Ally Attacks . | . . Total Damage . | . . Kills . | . . Allies Corrupted . | . . Allies Melted . | . . Intel | -11 -10 ------- Run | Yrd Mat Active Infowar (turns) . | . . Robot Analysis Total . | . . Derelict Logs Recovered . | . . Drone Launches . | . . Drone Recoveries . | . . Exploration | -11 -10 ------------- Run | Yrd Mat Turns Passed 1926 | 1149 777 Spaces Moved 929 | 388 541 Core 55 | 42 13 Treads . | . . Legs 724 | 346 378 Wheels 14 | . 14 Hover . | . . Flight 136 | . 136 Fastest Speed 37 | 50 37 Average Speed 106 | 112 102 Slowest Speed 190 | 120 190 Overloaded Moves . | . . Propulsion Burnouts . | . . Robots Hopped 1 | . 1 Potential Cave-ins . | . . Cave-ins Triggered . | . . Exploration Rate (%) 38 | 22 55 Regions Visited 1 Branch Regions . Pre-discovered Areas . | . . Known Exits Taken . | . . Unknown Exits Taken 1 | 1 . Scrap Searched . | . . Spaces Dug . | . . Terrain Destroyed . | . . Melee . | . . Projectile . | . . AOE . | . . Terrain Rammed . | . . Walls Destroyed . | . . Machines Disabled . | . . Actions | -11 -10 --------- Run | Yrd Mat Total 1742 | 1093 649 Wait 683 | 683 . Move 926 | 387 539 Hop 1 | . 1 Pick Up 28 | 12 16 Fast Attach 5 | . 5 Attach 15 | 6 9 Detach 1 | . 1 Swap 4 | . 4 Drop 11 | 1 10 Fire 63 | 4 59 Melee . | . . Ram 2 | . 2 Kick 3 | . 3 Crush . | . . Escape Stasis . | . . Rewire . | . . Trap . | . . Miscellaneous . | . . Route ------- -11/Scrapyard -10/Materials (discovered 4 exits: *Mat x2 / *Min / [*Sub]) History --------- Turn | Location | Event 2 | -11/Scrapyard | Met Revision 17 148 | -11/Scrapyard | Discovered new exit (range 8) 1150 | -11/Scrapyard | Entered Materials 1151 | -10/Materials | Build established: Mutant 1197 | -10/Materials | Discovered new exit (range 16) 1434 | -10/Materials | Discovered new exit (range 9) 1683 | -10/Materials | Discovered new exit (range 16) 1789 | -10/Materials | Identified exit to Materials 1813 | -10/Materials | Discovered new exit (range 16) 1818 | -10/Materials | Identified exit to Mines 1860 | -10/Materials | Core integrity fell below 50% 1868 | -10/Materials | Lost 3 parts (1p1n1w) 1909 | -10/Materials | Core integrity fell below 20% 1927 | -10/Materials | Core destroyed Last Messages --------------- Power failure, Ion Engine shutdown. S-10 Pest heat damages Flight Unit. Flight Unit destroyed. Triggered Alarm Trap. An alarm sounds. ALERT: Alarm triggered, dispatching investigation squad. Broken Sml. Laser destroyed. K-01 Serf cleans the Electrolysis Chamber. Slammed into G-34 Mercenary. K-01 Serf cleans the Electrolysis Chamber. Slammed into G-34 Mercenary. Ion Engine broken. Destabilizing: Short circuit. Acquired 3 matter. Acquired Wheel. Ion Engine destroyed. Acquired Wheel. Slammed into K-01 Serf. [Achievement: First Step to Greatness] Map ----- +----------------------------------------------------+ | ??????????????????????????????????????????????# | | ??????????????????????????????? ????????????# | | ??????????????????????????????# #???????????# | | ??????????????????????????????# #???????????# | | ??????????????????????????????# #???????????# | | ??????????????????????????????# #???????????# | | ??????????????????????????????# #???????????### | | ??????????????????????????????# #?????????????#% | | ??????????????????????????????# ########??????# | | ??????????????????????????????# # #??????# | | ??????????????????????????????# # ######## | | ??????????????????????????????# # """ + | | ??????????????????????????????# # """ ######### | | ??????????????????????????????# # """ #???????? | | ??????#???????????#########???# # #???????? | | ???#### ########+## ##### ####+########??? | | ???# !!] #??? | | ???# !]] > #### | | ???+ """ ^] """ # | | ???# "R ! # #######+#### """ # | | ???# """ # "!"!" #??????????# """ #!"" | | ???# ""%= #""!"!""#??????????# %# "" | | ???# = #########??????????# %+ "" | | ???# % % k +??????# # | | ???# ####+#### ########k#??????????###### # | | ???# ??? ???# #??????#@#???????????????# # | | ?? ???# ????# #??????# #??????????????## #### | | ?? ?????+ ????# #??????# #??????????????#T #### | | ????????# ?????# #??????# #??????????????## + | | ????????# ?????# #??????#s#?????#######???# # | | ????????#??????# #??????# #?????# ##### # | | ??????????????# #?######g####### + | | ????????????# #?# t / " # | | ???????????# #?# ##### + | | ???######## ### = #???# % ######+##### | | ??# # # #???#######???? ??? | | ## """ # %+ #?????????????? ? | | + """ # # """ #?????????????? | | ######### """ + # """ #?????????????? | | ????????# """ # # """ #????????????? | | ????????# # # #?????????????###<#### | | ################ ############################### | | | | | | | | #########T#######+######################+######+## | | ????????###??# #??????????????????????????? | | ?????????????# ""#??????????????????????????? | | ?????????????# T"#??????????????????????????? | | ?????????????# ""#??????????????????????????? | +----------------------------------------------------+ Best States ------------- Heat Dissipation 35 Energy Generation 10 Energy Capacity 350 Matter Stores 350 Matter Capacity 350 Sight Range 16 Terrain Scan Density 10 Evasion (%) 62 Item Schematics ----------------- None Robot Schematics ------------------ None Fabricated ------------ Nothing Repaired ---------- Nothing Studied --------- None Alien Tech Used ----------------- None Achievements -------------- First Step to Greatness For Emergencies Only One Hack Too Far Organ Harvest Storm Trooper There's More Where That Came From Uninvited Guest Challenges ------------ None Game ------ Seed SigixMicrowarpChronowheel Manual? 0 Play Time 00:45:11 Cumulative 0.7 hours Start 2025.10.22 @ 17:16:43 End 2025.10.24 @ 21:09:34 Sessions 3 Manual Loads 0 Difficulty Rogue Special Mode None Game No. 1 Rogue 1 Adventurer 0 Explorer 0 Win Type - Total 0 Types 0/0/0/0/0/0/0/0/0/0 Lore% 0 Gallery% 1 Achievement% 1 Wizard Run 0 Options --------- Layout 1 ASCII 0 Keyboard 1 Movement Arrows Keybinds 0 Fullscreen 1 Font 32/SmallcapsGlow Map View 50x35 Zoom Use 4% Tactical HUD 0 Map Filters NONE Filters NONE Steam 1 RUN: 51ffe5f7-bd7e-4175-b084-84c41c3eba2e